[Event "Leca Open 2022"]
[Site "Leca da Palmeira"]
[Date "2022.08.01"]
[Round "3.12"]
[White "Modi, Shyam Jagdish"]
[Black "Martins, Bruno Andre Leite"]
[Result "0-1"]
[ECO "E04"]
[WhiteElo "2138"]
[BlackElo "2331"]
[Annotator "RC"]
[PlyCount "58"]
[EventDate "2022.08.02"]
[EventType "swiss"]
[EventCountry "POR"]
[SourceTitle "playchess.com"]
[Source "ChessBase"]
[SourceQuality "1"]
[TimeControl "5400+30"]

1. d4 {[%emt 0:00:03]} Nf6 {[%emt 0:06:17]} 2. c4 {[%emt 0:00:06]} e6 {[%emt 0:00:10]} 3. g3 {[%emt 0:00:05]} d5 {[%emt 0:00:32]} 4. Bg2 {[%emt 0:00:11]} dxc4 {[%emt 0:03:18]} 5. Nf3 {[%emt 0:00:09]} Nbd7 {[%emt 0:01:03]} 6. Qa4 {[%emt 0:05:41]} a6 {[%emt 0:02:57]} 7. Qxc4 {[%emt 0:00:21]} b5 {[%emt 0:00:21]} 8. Qc6 {[%emt 0:09:55]} Rb8 {[%emt 0:09:19]} 9. Qc2 {[%emt 0:08:29]} Bb7 {[%emt 0:01:20]} 10. O-O {[%emt 0:04:23]} c5 {[%emt 0:02:13]} 11. dxc5 {[%emt 0:05:36]} Bxc5 {[%emt 0:02:13]} 12. e3 {[%emt 0:02:21]} O-O {[%emt 0:05:50]} 13. b3 {[%emt 0:00:50]} Rc8 {[%emt 0:06:06]} 14. Qe2 {[%emt 0:01:21]} Qe7 {[%emt 0:02:47]} 15. Bb2 {[%emt 0:00:37]} Rfd8 {[%emt 0:03:51]} 16. Nc3 {[%emt 0:11:18]} Ba3 {[%emt 0:10:26]} 17. Rac1 {[%emt 0:01:34]} Bxb2 {[%emt 0:00:20]} 18. Qxb2 {[%emt 0:00:02]} Nc5 {[%emt 0:01:55]} 19. Ne1 {[%emt 0:13:38]} b4 {[%emt 0:02:39]} 20. Ne2 {[%emt 0:05:38]} Bxg2 {[%emt 0:02:01]} 21. Kxg2 {[%emt 0:00:02]} Qb7+ {[%emt 0:01:46]} 22. Kg1 {[%emt 0:00:17]} Nfe4 {[%emt 0:05:07]} 23. Nd4 {[%emt 0:08:36]} Nc3 {[%emt 0:05:21]} 24. f3 {[%emt 0:05:26]} e5 {[%emt 0:00:51]} 25. Ne2 {[%emt 0:00:20]} N5a4 {[%emt 0:01:14]} 26. bxa4 {[%emt 0:02:38]} Nxe2+ {[%emt 0:00:11]} 27. Qxe2 {[%emt 0:00:06]} Rxc1 {[%emt 0:00:06]} 28. Nd3 {[%emt 0:00:39]} Rxf1+ {[%emt 0:00:26]} 29. Kxf1 {[%emt 0:00:06]} Qc6 {[%emt 0:02:39]} 0-1

[Event "Leca Open 2022"]
[Site "Leca da Palmeira"]
[Date "2022.08.01"]
[Round "3.13"]
[White "Verma, Aditya"]
[Black "Prieto Martin, Alfonso"]
[Result "1/2-1/2"]
[ECO "B40"]
[WhiteElo "2114"]
[BlackElo "2264"]
[Annotator "RC"]
[PlyCount "63"]
[EventDate "2022.08.02"]
[EventType "swiss"]
[EventCountry "POR"]
[SourceTitle "playchess.com"]
[Source "ChessBase"]
[SourceQuality "1"]
[TimeControl "5400+30"]

1. e4 {[%emt 0:00:02]} c5 {[%emt 0:00:10]} 2. Nf3 {[%emt 0:00:05]} e6 {[%emt 0:00:13]} 3. d4 {[%emt 0:00:04]} cxd4 {[%emt 0:00:06]} 4. Nxd4 {[%emt 0:00:04]} Nf6 {[%emt 0:00:11]} 5. Nc3 {[%emt 0:00:04]} Nc6 {[%emt 0:00:03]} 6. g3 {[%emt 0:00:13]} d5 {[%emt 0:00:04]} 7. Bg2 {[%emt 0:00:13]} Bb4 {[%emt 0:01:11]} 8. exd5 {[%emt 0:00:21]} Nxd5 {[%emt 0:00:16]} 9. O-O {[%emt 0:00:46]} Nxc3 {[%emt 0:16:30]} 10. Nxc6 {[%emt 0:00:57]} Qxd1 {[%emt 0:00:05]} 11. Rxd1 {[%emt 0:00:07]} Nxd1 {[%emt 0:00:04]} 12. Nxb4 {[%emt 0:00:06]} O-O {[%emt 0:03:05]} 13. Nd3 {[%emt 0:01:31]} Rd8 {[%emt 0:15:11]} 14. Rb1 {[%emt 0:46:29]} e5 {[%emt 0:13:55]} 15. Bd2 {[%emt 0:03:10]} Bf5 {[%emt 0:02:13]} 16. Rxd1 {[%emt 0:00:22]} Rac8 {[%emt 0:01:04]} 17. Bf1 {[%emt 0:13:16]} Rxc2 {[%emt 0:01:01]} 18. Bc3 {[%emt 0:02:05]} f6 {[%emt 0:06:56]} 19. f3 {[%emt 0:02:51]} h5 {[%emt 0:22:31]} 20. Nf2 {[%emt 0:03:16]} Rxd1 {[%emt 0:00:06]} 21. Nxd1 {[%emt 0:00:02]} Rc1 {[%emt 0:00:38]} 22. Ne3 {[%emt 0:00:15]} Bd3 {[%emt 0:01:39]} 23. Kf2 {[%emt 0:01:03]} Bxf1 {[%emt 0:00:06]} 24. Nxf1 {[%emt 0:00:03]} Kf7 {[%emt 0:00:26]} 25. h4 {[%emt 0:02:33]} Ke6 {[%emt 0:00:33]} 26. g4 {[%emt 0:00:59]} hxg4 {[%emt 0:02:37]} 27. fxg4 {[%emt 0:00:02]} Kd5 {[%emt 0:01:07]} 28. Ng3 {[%emt 0:02:49]} g6 {[%emt 0:04:01]} 29. h5 {[%emt 0:01:25]} Rc2+ {[%emt 0:00:18]} 30. Kf3 {[%emt 0:05:17]} gxh5 {[%emt 0:00:09]} 31. Nxh5 {[%emt 0:01:12]} Ke6 {[%emt 0:02:32]} 32. Ng7+ 1/2-1/2

[Event "Leca Open 2022"]
[Site "Leca da Palmeira"]
[Date "2022.08.01"]
[Round "3.14"]
[White "Bastos Gonzalez, Gonzalo"]
[Black "Martinez Duany, Lelys Stanley"]
[Result "0-1"]
[ECO "A89"]
[WhiteElo "1946"]
[BlackElo "2497"]
[Annotator "RC"]
[PlyCount "46"]
[EventDate "2022.08.02"]
[EventType "swiss"]
[EventCountry "POR"]
[SourceTitle "playchess.com"]
[Source "ChessBase"]
[SourceQuality "1"]
[TimeControl "5400+30"]

1. c4 {[%emt 0:00:03]} g6 {[%emt 0:03:21]} 2. g3 {[%emt 0:00:07]} Bg7 {[%emt 0:00:24]} 3. Bg2 {[%emt 0:00:10]} f5 {[%emt 0:00:27]} 4. Nc3 {[%emt 0:00:55]} Nf6 {[%emt 0:00:38]} 5. Nf3 {[%emt 0:01:18]} O-O {[%emt 0:00:20]} 6. O-O {[%emt 0:00:31]} Nc6 {[%emt 0:00:33]} 7. d4 {[%emt 0:06:06]} d6 {[%emt 0:00:07]} 8. d5 {[%emt 0:04:17]} Na5 {[%emt 0:00:08]} 9. Qd3 {[%emt 0:02:10]} c5 {[%emt 0:01:51]} 10. Ng5 {[%emt 0:10:13]} Rb8 {[%emt 0:03:41]} 11. Re1 {[%emt 0:08:46]} a6 {[%emt 0:04:06]} 12. Rb1 {[%emt 0:08:06]} Ng4 {[%emt 0:03:07]} 13. f4 {[%emt 0:07:22]} b5 {[%emt 0:00:09]} 14. h3 {[%emt 0:06:18]} Nf6 {[%emt 0:01:47]} 15. b3 {[%emt 0:01:59]} bxc4 {[%emt 0:01:44]} 16. bxc4 {[%emt 0:00:17]} Rb4 {[%emt 0:00:06]} 17. Rxb4 {[%emt 0:01:18]} cxb4 {[%emt 0:00:07]} 18. Na4 {[%emt 0:01:57]} Qc7 {[%emt 0:00:45]} 19. Bd2 {[%emt 0:03:21]} Qxc4 {[%emt 0:02:15]} 20. Qxc4 {[%emt 0:01:16]} Nxc4 {[%emt 0:00:07]} 21. Bxb4 {[%emt 0:01:07]} Bd7 {[%emt 0:00:06]} 22. Rc1 {[%emt 0:06:51]} Rc8 {[%emt 0:00:08]} 23. Nc3 {[%emt 0:04:39]} a5 0-1

[Event "Leca Open 2022"]
[Site "Leca da Palmeira"]
[Date "2022.08.01"]
[Round "3.15"]
[White "Pintor, Simao Maciel Abranch"]
[Black "Umetsubo, Cesar Hidemitsu"]
[Result "1-0"]
[ECO "B62"]
[WhiteElo "2062"]
[BlackElo "2405"]
[Annotator "RC"]
[PlyCount "65"]
[EventDate "2022.08.02"]
[EventType "swiss"]
[EventCountry "POR"]
[SourceTitle "playchess.com"]
[Source "ChessBase"]
[SourceQuality "1"]
[TimeControl "5400+30"]

1. e4 {[%emt 0:12:53]} c5 {[%emt 0:00:38]} 2. Nf3 {[%emt 0:00:05]} d6 {[%emt 0:00:16]} 3. d4 {[%emt 0:00:12]} cxd4 {[%emt 0:00:22]} 4. Nxd4 {[%emt 0:00:05]} Nf6 {[%emt 0:00:24]} 5. Nc3 {[%emt 0:00:05]} Nc6 {[%emt 0:00:06]} 6. Bg5 {[%emt 0:00:17]} e6 {[%emt 0:00:17]} 7. Qd3 {[%emt 0:00:14]} Bd7 {[%emt 0:00:32]} 8. Ndb5 {[%emt 0:02:33]} Nb4 {[%emt 0:00:12]} 9. Qd2 {[%emt 0:01:00]} a6 {[%emt 0:00:09]} 10. Nd4 {[%emt 0:01:00]} Rc8 {[%emt 0:10:09]} 11. a3 {[%emt 0:02:13]} Nc6 {[%emt 0:00:15]} 12. O-O-O {[%emt 0:01:27]} b5 {[%emt 0:02:27]} 13. Bxb5 {[%emt 0:12:30]} axb5 {[%emt 0:01:01]} 14. Ndxb5 {[%emt 0:02:24]} Ne5 {[%emt 0:22:30]} 15. Nxd6+ {[%emt 0:06:24]} Bxd6 {[%emt 0:00:17]} 16. Qxd6 {[%emt 0:00:05]} Nc4 {[%emt 0:00:34]} 17. Bxf6 {[%emt 0:01:26]} gxf6 {[%emt 0:00:14]} 18. Qd4 {[%emt 0:01:02]} Rg8 {[%emt 0:09:03]} 19. Rd3 {[%emt 0:03:49]} Ne5 {[%emt 0:02:17]} 20. Rg3 {[%emt 0:00:56]} Rg6 {[%emt 0:01:05]} 21. f4 {[%emt 0:02:43]} Nc6 {[%emt 0:02:20]} 22. Qd3 {[%emt 0:02:27]} Qc7 {[%emt 0:06:13]} 23. e5 {[%emt 0:02:07]} Kf8 {[%emt 0:15:37]} 24. Nb5 {[%emt 0:04:22]} Nxe5 {[%emt 0:06:43]} 25. Qxg6 {[%emt 0:05:28]} Bxb5 {[%emt 0:00:09]} 26. Qh6+ {[%emt 0:03:00]} Ke7 {[%emt 0:00:08]} 27. Rc3 {[%emt 0:00:13]} Nc4 {[%emt 0:00:11]} 28. f5 {[%emt 0:04:23]} e5 {[%emt 0:01:08]} 29. Rd1 {[%emt 0:02:09]} Qb7 {[%emt 0:02:02]} 30. b3 {[%emt 0:02:02]} Nxa3 {[%emt 0:01:16]} 31. Rxc8 {[%emt 0:00:28]} Qxc8 {[%emt 0:00:01]} 32. Qd2 {[%emt 0:00:16]} Qc3 {[%emt 0:03:43]} 33. Qd8# {[%emt 0:00:48]} 1-0

[Event "Leca Open 2022"]
[Site "Leca da Palmeira"]
[Date "2022.08.02"]
[Round "4.1"]
[White "Motylev, Alexander"]
[Black "Nigmatov, Ortik"]
[Result "1/2-1/2"]
[ECO "C78"]
[WhiteElo "2632"]
[BlackElo "2437"]
[Annotator "TA"]
[PlyCount "61"]
[EventDate "2022.08.02"]
[EventType "swiss"]
[EventCountry "POR"]
[SourceTitle "playchess.com"]
[Source "ChessBase"]
[SourceQuality "1"]
[TimeControl "5400+30"]

{[%evp 16,61,42,4,12,2,8,2,0,3,0,5,20,27,21,16,38,52,39,2,29,11,28,0,0,0,0,0,1,6,44,12,25,47,76,-16,-16,-35,-39,-45,-22,-18,-10,-14,-15,-12,0,0]} 1. e4 {[%emt 0:00:04]} e5 {[%emt 0:00:08]} 2. Nf3 {[%emt 0:00:07]} Nc6 {[%emt 0:00:05]} 3. Bb5 {[%emt 0:00:05][%cal Bf1b5,Bb5a4,Ba4b3][%mdl 32]} a6 {[%emt 0:00:04]} 4. Ba4 {[%emt 0:00:06]} Nf6 {[%emt 0:00:06]} 5. O-O {[%emt 0:00:06]} Bc5 {[%emt 0:00:07]} 6. c3 {[%emt 0:00:52]} b5 {[%emt 0:00:06]} 7. Bb3 {[%emt 0:00:06]} d6 {[%emt 0:00:09]} 8. d4 {[%emt 0:01:22]} Bb6 {[%emt 0:00:24]} 9. Be3 $1 {[%emt 0:00:06][%mdl 4] is more profitable than 9.a4 at the moment.} (9. a4 $5 {[%cal Ra4b5]}) 9... O-O {[%emt 0:00:14] C78: Ruy Lopez: Archangelsk and Möller Defences.} 10. Nbd2 {[%emt 0:00:32]} Re8 {[%emt 0:01:05]} 11. dxe5 {[%emt 0:00:29]} dxe5 {[%emt 0:01:14]} 12. Qe2 {[%emt 0:00:36] [#]} Na5 $146 {[%emt 0:01:39]} ({Predecessor:} 12... Qe7 13. Rfd1 Na5 14. Bc2 Nh5 15. b4 Nc6 16. a4 Rb8 17. axb5 axb5 18. Bxb6 Rxb6 {0-1 (53) Majhi,A (2231)-Lampert,J (2489) Wunsiedel 2016}) 13. Bc2 {[%emt 0:00:40]} c5 {[%emt 0:03:02]} 14. Rfd1 {[%emt 0:07:07]} Qc7 {[%emt 0:01:27]} 15. Bg5 {[%emt 0:07:25] Bxf6 is the strong threat.} Nd7 {[%emt 0:09:31]} 16. Nf1 {[%emt 0:02:23]} f6 {[%emt 0:01:17]} 17. Bh4 {[%emt 0:01:41]} Nf8 {[%emt 0:01:42]} 18. Ne3 {[%emt 0:00:35]} Be6 {[%emt 0:02:14]} 19. Nd5 {[%emt 0:03:33]} Bxd5 {[%emt 0:00:23]} 20. Rxd5 {[%emt 0:00:33]} Rad8 {[%emt 0:02:38]} 21. a4 {[%emt 0:16:42]} Rxd5 {[%emt 0:10:04]} 22. exd5 {[%emt 0:00:10]} Qd7 {[%emt 0:15:05]} 23. axb5 {[%emt 0:03:55]} axb5 {[%emt 0:02:27]} 24. Nd2 {[%emt 0:02:19]} f5 {[%emt 0:13:58] Inhibits Ne4.} ({Less strong is} 24... Qxd5 25. b4 Nc4 26. Bb3 $16) 25. Bg3 {[%emt 0:24:37]} ({White should play} 25. Bg5 $16) 25... c4 $11 {[%emt 0:02:44]} 26. Nf3 {[%emt 0:10:27]} e4 {[%emt 0:04:12]} 27. Nd4 {[%emt 0:01:53][%cal Od4b5]} Ng6 {[%emt 0:04:41] [#] aiming for ...f4.} 28. h4 $1 {[%emt 0:00:46] The position is equal.} f4 {[%emt 0:04:22]} 29. Bh2 {[%emt 0:01:40]} f3 {[%emt 0:17:11]} 30. gxf3 {[%emt 0:00:34]} Nxh4 {[%emt 0:01:38]} 31. Bxe4 {[%emt 0:01:59] Weighted Error Value: White=0.13 (very precise) /Black=0.07 (flawless)} 1/2-1/2

[Event "Leca Open 2022"]
[Site "Leca da Palmeira"]
[Date "2022.08.02"]
[Round "4.2"]
[White "Krishna C R G"]
[Black "Spraggett, Kevin"]
[Result "1/2-1/2"]
[ECO "E69"]
[WhiteElo "2430"]
[BlackElo "2487"]
[Annotator "RC"]
[PlyCount "142"]
[EventDate "2022.08.02"]
[EventType "swiss"]
[EventCountry "POR"]
[SourceTitle "playchess.com"]
[Source "ChessBase"]
[SourceQuality "1"]
[TimeControl "5400+30"]

1. d4 {[%emt 0:00:03]} Nf6 {[%emt 0:09:35]} 2. c4 {[%emt 0:00:11]} d6 {[%emt 0:00:20]} 3. g3 {[%emt 0:00:21]} g6 {[%emt 0:00:07]} 4. Bg2 {[%emt 0:00:04]} Bg7 {[%emt 0:00:04]} 5. Nf3 {[%emt 0:00:10]} O-O {[%emt 0:00:11]} 6. Nc3 {[%emt 0:00:11]} Nbd7 {[%emt 0:00:14]} 7. O-O {[%emt 0:00:08]} e5 {[%emt 0:00:27]} 8. e4 {[%emt 0:00:03]} c6 {[%emt 0:00:08]} 9. h3 {[%emt 0:01:29]} exd4 {[%emt 0:00:28]} 10. Nxd4 {[%emt 0:00:03]} Qb6 {[%emt 0:00:08]} 11. Nc2 {[%emt 0:03:25]} Ne5 {[%emt 0:09:37]} 12. b3 {[%emt 0:05:00]} Qa5 {[%emt 0:09:20]} 13. Bd2 {[%emt 0:16:14]} Qc7 {[%emt 0:06:05]} 14. Be3 {[%emt 0:12:16]} Re8 {[%emt 0:05:29]} 15. f4 {[%emt 0:25:54]} Ned7 {[%emt 0:00:15]} 16. Qd2 {[%emt 0:00:02]} Qa5 {[%emt 0:10:22]} 17. Nd4 {[%emt 0:00:48]} Nc5 {[%emt 0:02:52]} 18. Bf2 {[%emt 0:00:54]} Qc7 {[%emt 0:05:26]} 19. Rfe1 {[%emt 0:02:15]} a5 {[%emt 0:00:25]} 20. Rad1 {[%emt 0:05:01]} Nfd7 {[%emt 0:05:16]} 21. Ndb5 {[%emt 0:04:27]} cxb5 {[%emt 0:00:10]} 22. Nxb5 {[%emt 0:00:03]} Qb8 {[%emt 0:02:36]} 23. Nxd6 {[%emt 0:00:12]} Rf8 {[%emt 0:00:28]} 24. e5 {[%emt 0:09:38]} Ra6 {[%emt 0:00:54]} 25. Qc2 {[%emt 0:00:02]} Qc7 {[%emt 0:06:57]} 26. Nb5 {[%emt 0:01:41]} Qb8 {[%emt 0:00:05]} 27. Nd6 {[%emt 0:00:03]} Qc7 {[%emt 0:00:07]} 28. a3 {[%emt 0:00:28]} Ne6 {[%emt 0:03:49]} 29. Qd2 {[%emt 0:07:21]} Rd8 {[%emt 0:01:15]} 30. Qd5 {[%emt 0:03:58]} Nb6 {[%emt 0:15:27]} 31. Qf3 {[%emt 0:01:50]} Bf8 {[%emt 0:05:53]} 32. Nxc8 {[%emt 0:00:28]} Qxc8 {[%emt 0:00:41]} 33. Qxb7 {[%emt 0:00:05]} Nc5 {[%emt 0:00:23]} 34. Qxc8 {[%emt 0:01:04]} Rxc8 {[%emt 0:00:09]} 35. b4 {[%emt 0:00:11]} axb4 {[%emt 0:00:28]} 36. axb4 {[%emt 0:00:04]} Nxc4 {[%emt 0:00:10]} 37. bxc5 {[%emt 0:01:44]} Bxc5 {[%emt 0:00:01]} 38. Bxc5 {[%emt 0:00:46]} Rxc5 {[%emt 0:00:01]} 39. Rd8+ {[%emt 0:00:26]} Kg7 {[%emt 0:00:02]} 40. Rd7 {[%emt 0:00:05]} Nb6 {[%emt 0:01:56]} 41. Rd6 {[%emt 0:01:06]} Rc2 {[%emt 0:01:52]} 42. Bf1 {[%emt 0:00:39]} Ra3 {[%emt 0:00:10]} 43. Rxb6 {[%emt 0:00:18]} Rxg3+ {[%emt 0:00:06]} 44. Kh1 {[%emt 0:00:03]} Rf3 {[%emt 0:00:48]} 45. Rb7 {[%emt 0:00:52]} Kf8 {[%emt 0:00:55]} 46. Rd1 {[%emt 0:00:49]} Rc8 {[%emt 0:00:40]} 47. Rb4 {[%emt 0:00:30]} Rc2 {[%emt 0:00:34]} 48. Rb8+ {[%emt 0:00:28]} Kg7 {[%emt 0:00:21]} 49. Rb7 {[%emt 0:00:01]} Rcf2 {[%emt 0:00:25]} 50. Bg2 {[%emt 0:00:56]} Rg3 {[%emt 0:00:12]} 51. Bf1 {[%emt 0:00:35]} Rxf4 {[%emt 0:00:30]} 52. e6 {[%emt 0:00:29]} Re3 {[%emt 0:00:14]} 53. e7 {[%emt 0:00:33]} Rfe4 {[%emt 0:00:36]} 54. Rdd7 {[%emt 0:00:02]} Rf4 {[%emt 0:01:02]} 55. Bg2 {[%emt 0:00:18]} Rf2 {[%emt 0:00:37]} 56. Kg1 {[%emt 0:00:23]} Rf6 {[%emt 0:00:29]} 57. Rdc7 {[%emt 0:00:48]} Re2 {[%emt 0:00:27]} 58. Bd5 {[%emt 0:01:01]} Re1+ {[%emt 0:00:07]} 59. Kh2 {[%emt 0:00:14]} Re2+ {[%emt 0:00:05]} 60. Kg1 {[%emt 0:00:39]} Re1+ {[%emt 0:00:06]} 61. Kg2 {[%emt 0:00:34]} Re2+ {[%emt 0:00:05]} 62. Kg3 {[%emt 0:00:03]} Re3+ {[%emt 0:00:06]} 63. Kh2 {[%emt 0:00:11]} Re2+ {[%emt 0:00:02]} 64. Bg2 {[%emt 0:00:51]} Rff2 {[%emt 0:00:05]} 65. Kh1 {[%emt 0:00:55]} Re1+ {[%emt 0:00:36]} 66. Kh2 {[%emt 0:00:04]} Ree2 {[%emt 0:00:05]} 67. Kh1 {[%emt 0:00:43]} Re1+ {[%emt 0:00:04]} 68. Kh2 {[%emt 0:00:02]} Ree2 {[%emt 0:00:04]} 69. e8=N+ {[%emt 0:01:08]} Kf8 {[%emt 0:00:53]} 70. Nd6 {[%emt 0:00:34]} Rxg2+ {[%emt 0:00:06]} 71. Kh1 {[%emt 0:00:01]} Rh2+ {[%emt 0:00:12]} 1/2-1/2

[Event "Leca Open 2022"]
[Site "Leca da Palmeira"]
[Date "2022.08.02"]
[Round "4.3"]
[White "Das, Sayantan"]
[Black "Akhvlediani, Irakli"]
[Result "1-0"]
[ECO "B36"]
[WhiteElo "2449"]
[BlackElo "2429"]
[Annotator "RC"]
[PlyCount "83"]
[EventDate "2022.08.02"]
[EventType "swiss"]
[EventCountry "POR"]
[SourceTitle "playchess.com"]
[Source "ChessBase"]
[SourceQuality "1"]
[TimeControl "5400+30"]

1. e4 {[%emt 0:00:47]} c5 {[%emt 0:00:06]} 2. Nf3 {[%emt 0:00:17]} g6 {[%emt 0:00:10]} 3. d4 {[%emt 0:01:01]} cxd4 {[%emt 0:00:05]} 4. Nxd4 {[%emt 0:00:08]} Nc6 {[%emt 0:00:04]} 5. c4 {[%emt 0:00:35]} Nf6 {[%emt 0:00:23]} 6. Nc3 {[%emt 0:00:49]} d6 {[%emt 0:00:05]} 7. Be2 {[%emt 0:00:53]} Nxd4 {[%emt 0:00:05]} 8. Qxd4 {[%emt 0:00:10]} Bg7 {[%emt 0:00:04]} 9. Be3 {[%emt 0:00:29]} O-O {[%emt 0:00:08]} 10. Qd2 {[%emt 0:04:17]} Be6 {[%emt 0:00:05]} 11. Rc1 {[%emt 0:05:01]} a5 {[%emt 0:00:38]} 12. O-O {[%emt 0:01:22]} a4 {[%emt 0:00:14]} 13. f3 {[%emt 0:01:28]} Qa5 {[%emt 0:00:26]} 14. Rc2 {[%emt 0:05:25]} Rfc8 {[%emt 0:03:12]} 15. b3 {[%emt 0:01:30]} axb3 {[%emt 0:01:03]} 16. axb3 {[%emt 0:00:02]} Qb4 {[%emt 0:01:05]} 17. Rb1 {[%emt 0:02:23]} Nd7 {[%emt 0:07:44]} 18. Nb5 {[%emt 0:11:46]} Qxd2 {[%emt 0:00:08]} 19. Rxd2 {[%emt 0:00:22]} Ne5 {[%emt 0:13:48]} 20. f4 {[%emt 0:08:27]} Nc6 {[%emt 0:01:50]} 21. Kf2 {[%emt 0:02:09]} Nb4 {[%emt 0:25:24]} 22. Bf3 {[%emt 0:12:20]} Ra2 {[%emt 0:02:06]} 23. Rxa2 {[%emt 0:04:42]} Nxa2 {[%emt 0:00:02]} 24. Bd4 {[%emt 0:00:52]} Nb4 {[%emt 0:08:02]} 25. Bxg7 {[%emt 0:00:51]} Kxg7 {[%emt 0:00:04]} 26. Ra1 {[%emt 0:00:17]} Bd7 {[%emt 0:05:00]} 27. Nc3 {[%emt 0:03:28]} Bc6 {[%emt 0:05:36]} 28. Ra7 {[%emt 0:02:41]} e5 {[%emt 0:06:37]} 29. fxe5 {[%emt 0:06:43]} Nd3+ {[%emt 0:01:27]} 30. Ke3 {[%emt 0:00:09]} Nxe5 {[%emt 0:00:04]} 31. Be2 {[%emt 0:00:30]} b6 {[%emt 0:09:00]} 32. Ra6 {[%emt 0:02:01]} Rb8 {[%emt 0:02:23]} 33. b4 {[%emt 0:02:58]} Nd7 {[%emt 0:01:01]} 34. Ra7 {[%emt 0:02:15]} Rb7 {[%emt 0:00:33]} 35. Rxb7 {[%emt 0:01:22]} Bxb7 {[%emt 0:00:07]} 36. Nb5 {[%emt 0:00:08]} Kf6 {[%emt 0:01:32]} 37. Nxd6 {[%emt 0:00:15]} Bc6 {[%emt 0:00:03]} 38. Kd4 {[%emt 0:03:59]} Ke7 {[%emt 0:02:59]} 39. Nc8+ {[%emt 0:02:10]} Ke6 {[%emt 0:03:46]} 40. Bg4+ {[%emt 0:00:51]} f5 {[%emt 0:00:03]} 41. exf5+ {[%emt 0:00:13]} gxf5 {[%emt 0:00:05]} 42. Bxf5+ {[%emt 0:00:11]} 1-0

[Event "Leca Open 2022"]
[Site "Leca da Palmeira"]
[Date "2022.08.02"]
[Round "4.4"]
[White "Pierrot, Facundo"]
[Black "Stella, Andrea"]
[Result "1/2-1/2"]
[ECO "B51"]
[WhiteElo "2371"]
[BlackElo "2443"]
[Annotator "RC"]
[PlyCount "60"]
[EventDate "2022.08.02"]
[EventType "swiss"]
[EventCountry "POR"]
[SourceTitle "playchess.com"]
[Source "ChessBase"]
[SourceQuality "1"]
[TimeControl "5400+30"]

1. e4 c5 2. Nf3 d6 3. Bb5+ Nd7 4. d4 cxd4 5. Qxd4 a6 6. Bxd7+ Bxd7 7. O-O Nf6 8. Bg5 e6 9. c4 Be7 10. h3 Bc6 11. Nc3 O-O 12. Rfd1 h6 13. Be3 b5 14. b4 bxc4 15. Qxc4 Qc8 16. Nd2 d5 17. exd5 Nxd5 18. Nxd5 Bxd5 19. Qg4 e5 20. a3 f5 21. Qe2 f4 22. Bc5 Bxc5 23. bxc5 Qxc5 24. Qxe5 Rae8 25. Qh5 Qc6 26. Nf3 Bxf3 27. Qxf3 Qxf3 28. gxf3 Re5 29. Rac1 Rg5+ 30. Kf1 Rh5 1/2-1/2

[Event "Leca Open 2022"]
[Site "Leca da Palmeira"]
[Date "2022.08.02"]
[Round "4.5"]
[White "Abdisalimov, Abdimalik"]
[Black "Buscara, Sevan"]
[Result "1/2-1/2"]
[ECO "D31"]
[WhiteElo "2437"]
[BlackElo "2404"]
[Annotator "RC"]
[PlyCount "123"]
[EventDate "2022.08.02"]
[EventType "swiss"]
[EventCountry "POR"]
[SourceTitle "playchess.com"]
[Source "ChessBase"]
[SourceQuality "1"]
[TimeControl "5400+30"]

1. d4 {[%emt 0:00:01]} d5 {[%emt 0:03:25]} 2. c4 {[%emt 0:00:06]} e6 {[%emt 0:00:06]} 3. Nc3 {[%emt 0:00:03]} a6 {[%emt 0:00:08]} 4. cxd5 {[%emt 0:00:05]} exd5 {[%emt 0:00:05]} 5. Nf3 {[%emt 0:00:10]} Nf6 {[%emt 0:00:11]} 6. Qb3 {[%emt 0:00:05]} Be7 {[%emt 0:09:36]} 7. Bg5 {[%emt 0:01:14]} c6 {[%emt 0:01:24]} 8. e3 {[%emt 0:00:05]} a5 {[%emt 0:00:38]} 9. Bd3 {[%emt 0:00:42]} O-O {[%emt 0:05:54]} 10. O-O {[%emt 0:00:13]} Na6 {[%emt 0:00:34]} 11. Ne5 {[%emt 0:01:44]} Nb4 {[%emt 0:04:05]} 12. Be2 {[%emt 0:02:58]} Bf5 {[%emt 0:03:58]} 13. Rfc1 {[%emt 0:03:33]} Ne8 {[%emt 0:03:35]} 14. Bxe7 {[%emt 0:13:25]} Qxe7 {[%emt 0:00:04]} 15. a3 {[%emt 0:04:22]} Na6 {[%emt 0:01:09]} 16. Na4 {[%emt 0:05:33]} Nd6 {[%emt 0:02:15]} 17. Nb6 {[%emt 0:10:36]} Ra7 {[%emt 0:00:41]} 18. Qc3 {[%emt 0:04:48]} Nc7 {[%emt 0:02:14]} 19. Qc5 {[%emt 0:01:39]} Nc8 {[%emt 0:02:45]} 20. b4 {[%emt 0:04:09]} axb4 {[%emt 0:02:00]} 21. axb4 {[%emt 0:00:37]} Rxa1 {[%emt 0:00:39]} 22. Rxa1 {[%emt 0:00:11]} Qxc5 {[%emt 0:06:22]} 23. bxc5 {[%emt 0:00:08]} Nxb6 {[%emt 0:02:04]} 24. cxb6 {[%emt 0:00:18]} Ne8 {[%emt 0:02:14]} 25. g4 {[%emt 0:02:22]} Bc8 {[%emt 0:04:16]} 26. Nd3 {[%emt 0:03:21]} Nd6 {[%emt 0:00:31]} 27. Nc5 {[%emt 0:00:05]} Re8 {[%emt 0:01:45]} 28. Ra8 {[%emt 0:00:35]} Kf8 {[%emt 0:00:25]} 29. f3 {[%emt 0:00:49]} f5 {[%emt 0:01:20]} 30. gxf5 {[%emt 0:00:19]} Bxf5 {[%emt 0:01:01]} 31. Ra3 {[%emt 0:01:42]} g5 {[%emt 0:01:00]} 32. Kf2 {[%emt 0:00:09]} h5 {[%emt 0:00:41]} 33. Ra7 {[%emt 0:00:51]} Re7 {[%emt 0:00:30]} 34. Ra8+ {[%emt 0:04:37]} Re8 {[%emt 0:00:42]} 35. Ra1 {[%emt 0:00:37]} Kf7 {[%emt 0:00:41]} 36. Ra3 {[%emt 0:06:24]} Re7 {[%emt 0:02:27]} 37. Bf1 {[%emt 0:00:20]} g4 {[%emt 0:01:14]} 38. fxg4 {[%emt 0:03:03]} hxg4 {[%emt 0:00:32]} 39. Ra8 {[%emt 0:04:12]} Kg7 {[%emt 0:07:23]} 40. Be2 {[%emt 0:01:23]} Kf7 {[%emt 0:01:04]} 41. Rd8 {[%emt 0:02:23]} Nc4 {[%emt 0:09:25]} 42. Rb8 {[%emt 0:06:06]} Nd6 {[%emt 0:03:10]} 43. Ke1 {[%emt 0:03:54]} Kg6 {[%emt 0:02:42]} 44. Kf2 {[%emt 0:02:23]} Rh7 {[%emt 0:01:07]} 45. Kg1 {[%emt 0:01:54]} Re7 {[%emt 0:00:22]} 46. Bf1 {[%emt 0:00:32]} Kg5 {[%emt 0:05:01]} 47. Kf2 {[%emt 0:00:52]} Kh4 {[%emt 0:00:55]} 48. Rh8+ {[%emt 0:00:52]} Rh7 {[%emt 0:00:56]} 49. Rf8 {[%emt 0:00:51]} Bc8 {[%emt 0:02:06]} 50. Rd8 {[%emt 0:01:30]} Rh6 {[%emt 0:01:20]} 51. Kg2 {[%emt 0:01:41]} Bf5 {[%emt 0:01:14]} 52. Rf8 {[%emt 0:01:09]} Be4+ {[%emt 0:01:57]} 53. Kg1 {[%emt 0:00:18]} Kg5 {[%emt 0:00:58]} 54. Be2 {[%emt 0:00:15]} Bf5 {[%emt 0:01:05]} 55. Rg8+ {[%emt 0:03:05]} Kh4 {[%emt 0:00:06]} 56. Rg7 {[%emt 0:00:48]} Rh7 {[%emt 0:00:28]} 57. Rg8 {[%emt 0:01:13]} Rf7 {[%emt 0:01:06]} 58. Rd8 {[%emt 0:00:44]} Nc8 {[%emt 0:01:11]} 59. Ba6 {[%emt 0:00:32]} Nxb6 {[%emt 0:00:30]} 60. Nxb7 {[%emt 0:00:33]} Nc4 {[%emt 0:01:05]} 61. Bxc4 {[%emt 0:00:05]} Rxb7 {[%emt 0:00:28]} 62. Rh8+ {[%emt 0:00:09]} 1/2-1/2